[Event "Titled Tuesday Blitz June 13 Early 2023"]
[White "Maevsky, Nikolay"]
[Black "Acikel, Mert"]
[WhiteFideId "4198220"]
[BlackFideId "12956465"]
[WhiteElo "2021"]
[BlackElo "2097"]
[Result "1-0"]
[Round "2"]
[TimeControl "180+2"]
[Date "2023.06.13"]
[WhiteClock "0:02:20"]
[BlackClock "0:00:44"]
[Board "100"]

1. d4 {[%clk 0:03:00]}  d5 {[%clk 0:02:59]} 2. Nf3 {[%clk 0:03:00]}  Nf6 {[%clk 0:02:59]} 3. e3 {[%clk 0:03:00]}  e6 {[%clk 0:02:59]} 4. Bd3 {[%clk 0:03:00]}  Be7 {[%clk 0:02:59]} 5. b3 {[%clk 0:03:01]}  O-O {[%clk 0:02:58]} 6. Bb2 {[%clk 0:03:01]}  b6 {[%clk 0:02:57]} 7. Nbd2 {[%clk 0:03:02]}  Bb7 {[%clk 0:02:57]} 8. O-O {[%clk 0:03:02]}  Ne4 {[%clk 0:02:56]} 9. c4 {[%clk 0:02:58]}  Nd7 {[%clk 0:02:53]} 10. Rc1 {[%clk 0:02:58]}  Ndf6 {[%clk 0:02:48]} 11. Qe2 {[%clk 0:02:58]}  dxc4 {[%clk 0:02:44]} 12. Nxc4 {[%clk 0:02:45]}  a6 {[%clk 0:02:39]} 13. Rfd1 {[%clk 0:02:45]}  h6 {[%clk 0:02:28]} 14. Nce5 {[%clk 0:02:45]}  Bd6 {[%clk 0:02:21]} 15. Nc6 {[%clk 0:02:43]}  Qe8 {[%clk 0:02:13]} 16. Nfe5 {[%clk 0:02:43]}  Bxe5 {[%clk 0:02:03]} 17. Nxe5 {[%clk 0:02:41]}  c5 {[%clk 0:01:28]} 18. f3 {[%clk 0:02:40]}  Nd6 {[%clk 0:01:18]} 19. dxc5 {[%clk 0:02:39]}  bxc5 {[%clk 0:01:19]} 20. Ba3 {[%clk 0:02:25]}  Qb8 {[%clk 0:01:06]} 21. Bxc5 {[%clk 0:02:23]}  Rc8 {[%clk 0:00:44]} 22. Bxd6 {[%clk 0:02:20]} 1-0


[Site "https://www.chess.com"]

[Event "Titled Tuesday Blitz June 13 Early 2023"]
[White "le-castor-faineant"]
[Black "Jaracz, Pawel"]
[BlackFideId "1102222"]
[WhiteElo "2201"]
[BlackElo "2454"]
[Result "0-1"]
[Round "2"]
[TimeControl "180+2"]
[Date "2023.06.13"]
[WhiteClock "0:01:15"]
[BlackClock "0:01:39"]
[Board "101"]

1. e4 {[%clk 0:03:00]}  e5 {[%clk 0:02:57]} 2. Nf3 {[%clk 0:03:01]}  Nc6 {[%clk 0:02:57]} 3. Bb5 {[%clk 0:03:01]}  a6 {[%clk 0:02:57]} 4. Ba4 {[%clk 0:03:01]}  Nf6 {[%clk 0:02:57]} 5. Qe2 {[%clk 0:03:01]}  d6 {[%clk 0:02:56]} 6. c3 {[%clk 0:02:47]}  Bd7 {[%clk 0:02:56]} 7. d4 {[%clk 0:02:45]}  Be7 {[%clk 0:02:51]} 8. Nbd2 {[%clk 0:02:38]}  O-O {[%clk 0:02:50]} 9. Bxc6 {[%clk 0:02:30]}  Bxc6 {[%clk 0:02:46]} 10. dxe5 {[%clk 0:02:31]}  dxe5 {[%clk 0:02:43]} 11. Nxe5 {[%clk 0:02:31]}  Bb5 {[%clk 0:02:42]} 12. c4 {[%clk 0:02:31]}  Be8 {[%clk 0:02:36]} 13. O-O {[%clk 0:02:29]}  b5 {[%clk 0:02:35]} 14. b3 {[%clk 0:02:27]}  Qc8 {[%clk 0:02:28]} 15. Bb2 {[%clk 0:02:25]}  Qb7 {[%clk 0:02:27]} 16. Rfe1 {[%clk 0:02:14]}  a5 {[%clk 0:02:23]} 17. Ndf3 {[%clk 0:02:09]}  a4 {[%clk 0:02:21]} 18. Nd4 {[%clk 0:02:06]}  bxc4 {[%clk 0:02:19]} 19. Nf5 {[%clk 0:02:04]}  Bb4 {[%clk 0:02:13]} 20. Nxc4 {[%clk 0:01:59]}  Ra6 {[%clk 0:02:01]} 21. e5 {[%clk 0:01:46]}  Nd5 {[%clk 0:01:59]} 22. Qg4 {[%clk 0:01:46]}  Rg6 {[%clk 0:01:59]} 23. Qf3 {[%clk 0:01:39]}  Bc6 {[%clk 0:01:58]} 24. Nd4 {[%clk 0:01:30]}  Bxe1 {[%clk 0:01:54]} 25. Rxe1 {[%clk 0:01:30]}  axb3 {[%clk 0:01:53]} 26. Na5 {[%clk 0:01:29]}  Qb4 {[%clk 0:01:51]} 27. Bc3 {[%clk 0:01:27]}  Qxc3 {[%clk 0:01:47]} 28. Qxc3 {[%clk 0:01:25]}  Nxc3 {[%clk 0:01:47]} 29. Naxc6 {[%clk 0:01:26]}  b2 {[%clk 0:01:47]} 30. Ne7+ {[%clk 0:01:26]}  Kh8 {[%clk 0:01:47]} 31. Nxg6+ {[%clk 0:01:27]}  hxg6 {[%clk 0:01:42]} 32. e6 {[%clk 0:01:22]}  fxe6 {[%clk 0:01:39]} 33. Nxe6 {[%clk 0:01:15]}  Re8 {[%clk 0:01:39]} 0-1


[Site "https://www.chess.com"]

[Event "Titled Tuesday Blitz June 13 Early 2023"]
[White "Itgelt, Khuyagtsogt"]
[Black "campochess"]
[WhiteFideId "4902912"]
[WhiteElo "2227"]
[BlackElo "2184"]
[Result "0-1"]
[Round "2"]
[TimeControl "180+2"]
[Date "2023.06.13"]
[WhiteClock "0:00:00"]
[BlackClock "0:00:51"]
[Board "102"]

1. Nf3 {[%clk 0:03:00]}  c5 {[%clk 0:02:58]} 2. e3 {[%clk 0:02:59]}  e6 {[%clk 0:02:56]} 3. b3 {[%clk 0:02:58]}  d5 {[%clk 0:02:55]} 4. Bb2 {[%clk 0:02:58]}  Nf6 {[%clk 0:02:55]} 5. c4 {[%clk 0:02:58]}  dxc4 {[%clk 0:02:53]} 6. Bxc4 {[%clk 0:02:58]}  a6 {[%clk 0:02:53]} 7. O-O {[%clk 0:02:49]}  b5 {[%clk 0:02:52]} 8. Be2 {[%clk 0:02:50]}  Bb7 {[%clk 0:02:52]} 9. d4 {[%clk 0:02:50]}  cxd4 {[%clk 0:02:51]} 10. Qxd4 {[%clk 0:02:39]}  Qxd4 {[%clk 0:02:48]} 11. Nxd4 {[%clk 0:02:39]}  Nbd7 {[%clk 0:02:48]} 12. a4 {[%clk 0:02:37]}  bxa4 {[%clk 0:02:30]} 13. bxa4 {[%clk 0:02:29]}  Be7 {[%clk 0:02:29]} 14. Ba3 {[%clk 0:02:24]}  Nd5 {[%clk 0:02:23]} 15. Bxe7 {[%clk 0:02:17]}  Kxe7 {[%clk 0:02:21]} 16. Na3 {[%clk 0:02:04]}  Rhc8 {[%clk 0:02:18]} 17. Rfc1 {[%clk 0:02:03]}  Rxc1+ {[%clk 0:02:16]} 18. Rxc1 {[%clk 0:02:04]}  Rc8 {[%clk 0:02:15]} 19. Rb1 {[%clk 0:01:59]}  Ba8 {[%clk 0:02:12]} 20. Bxa6 {[%clk 0:01:57]}  Rc5 {[%clk 0:02:01]} 21. Nb3 {[%clk 0:01:31]}  Rc7 {[%clk 0:01:43]} 22. Kf1 {[%clk 0:01:00]}  Nc3 {[%clk 0:01:30]} 23. Rc1 {[%clk 0:00:59]}  Ra7 {[%clk 0:01:17]} 24. Rxc3 {[%clk 0:00:50]}  Rxa6 {[%clk 0:01:17]} 25. a5 {[%clk 0:00:49]}  Bd5 {[%clk 0:01:15]} 26. Nc4 {[%clk 0:00:43]}  Rc6 {[%clk 0:01:07]} 27. Nbd2 {[%clk 0:00:20]}  Ne5 {[%clk 0:01:06]} 28. Nxe5 {[%clk 0:00:01]}  Rxc3 {[%clk 0:01:04]} 29. f4 {[%clk 0:00:02]}  f6 {[%clk 0:00:57]} 30. Nef3 {[%clk 0:00:01]}  Rxe3 {[%clk 0:00:55]} 31. Kf2 {[%clk 0:00:01]}  Ra3 {[%clk 0:00:55]} 32. Nd4 {[%clk 0:00:01]}  Rxa5 {[%clk 0:00:53]} 33. g3 {[%clk 0:00:01]}  g6 {[%clk 0:00:51]} 34. Ke3 {[%clk 0:00:00]}  e5 {[%clk 0:00:51]} 0-1


[Site "https://www.chess.com"]

[Event "Titled Tuesday Blitz June 13 Early 2023"]
[White "Timerkhanov, Alexander"]
[Black "Osuna Vega, Enrique"]
[WhiteFideId "24177938"]
[BlackFideId "2219549"]
[WhiteElo "2278"]
[BlackElo "2176"]
[Result "1-0"]
[Round "2"]
[TimeControl "180+2"]
[Date "2023.06.13"]
[WhiteClock "0:00:51"]
[BlackClock "0:00:00"]
[Board "104"]

1. d4 {[%clk 0:03:00]}  c6 {[%clk 0:02:54]} 2. e4 {[%clk 0:02:59]}  g6 {[%clk 0:02:51]} 3. c3 {[%clk 0:02:52]}  Bg7 {[%clk 0:02:50]} 4. Nf3 {[%clk 0:02:51]}  d6 {[%clk 0:02:50]} 5. Be2 {[%clk 0:02:50]}  Bg4 {[%clk 0:02:49]} 6. Be3 {[%clk 0:02:47]}  Nd7 {[%clk 0:02:48]} 7. Nbd2 {[%clk 0:02:47]}  Ngf6 {[%clk 0:02:45]} 8. h3 {[%clk 0:02:46]}  Bxf3 {[%clk 0:02:43]} 9. Bxf3 {[%clk 0:02:46]}  O-O {[%clk 0:02:39]} 10. O-O {[%clk 0:02:45]}  e6 {[%clk 0:02:32]} 11. Qc2 {[%clk 0:02:43]}  d5 {[%clk 0:02:31]} 12. e5 {[%clk 0:02:40]}  Ne8 {[%clk 0:02:30]} 13. Be2 {[%clk 0:02:38]}  f5 {[%clk 0:02:23]} 14. exf6 {[%clk 0:02:37]}  Nexf6 {[%clk 0:02:22]} 15. Bg5 {[%clk 0:02:30]}  Qc7 {[%clk 0:02:16]} 16. f4 {[%clk 0:02:26]}  c5 {[%clk 0:02:02]} 17. dxc5 {[%clk 0:02:06]}  Nxc5 {[%clk 0:01:51]} 18. Bf3 {[%clk 0:01:54]}  Rac8 {[%clk 0:01:44]} 19. Rae1 {[%clk 0:01:51]}  Qb6 {[%clk 0:01:38]} 20. Kh2 {[%clk 0:01:50]}  Rce8 {[%clk 0:01:35]} 21. b4 {[%clk 0:01:42]}  Ncd7 {[%clk 0:00:54]} 22. Nb3 {[%clk 0:01:41]}  e5 {[%clk 0:00:41]} 23. Bxf6 {[%clk 0:01:40]}  Nxf6 {[%clk 0:00:35]} 24. fxe5 {[%clk 0:01:38]}  Ne4 {[%clk 0:00:35]} 25. Bxe4 {[%clk 0:01:33]}  dxe4 {[%clk 0:00:32]} 26. Rxf8+ {[%clk 0:01:30]}  Kxf8 {[%clk 0:00:29]} 27. Qxe4 {[%clk 0:01:26]}  Rxe5 {[%clk 0:00:20]} 28. Qf3+ {[%clk 0:01:22]}  Rf5 {[%clk 0:00:19]} 29. Qd3 {[%clk 0:01:17]}  Be5+ {[%clk 0:00:18]} 30. Kh1 {[%clk 0:01:16]}  Qf6 {[%clk 0:00:17]} 31. Nc5 {[%clk 0:01:13]}  Kg7 {[%clk 0:00:15]} 32. Nd7 {[%clk 0:01:11]}  Qe6 {[%clk 0:00:11]} 33. Nxe5 {[%clk 0:01:10]}  Rxe5 {[%clk 0:00:11]} 34. Qd4 {[%clk 0:01:10]}  Kf6 {[%clk 0:00:10]} 35. a4 {[%clk 0:01:08]}  g5 {[%clk 0:00:10]} 36. a5 {[%clk 0:01:04]}  a6 {[%clk 0:00:08]} 37. c4 {[%clk 0:01:03]}  Kf5 {[%clk 0:00:00]} 38. g4+ {[%clk 0:00:51]} 1-0


[Site "https://www.chess.com"]

[Event "Titled Tuesday Blitz June 13 Early 2023"]
[White "Kriti Mayur Patel"]
[Black "Alex_Sahakyan2006"]
[WhiteFideId "35061780"]
[WhiteElo "1306"]
[BlackElo "2674"]
[Result "0-1"]
[Round "2"]
[TimeControl "180+2"]
[Date "2023.06.13"]
[WhiteClock "0:01:02"]
[BlackClock "0:02:31"]
[Board "107"]

1. e4 {[%clk 0:02:59]}  c5 {[%clk 0:02:59]} 2. d4 {[%clk 0:02:59]}  cxd4 {[%clk 0:02:59]} 3. c3 {[%clk 0:03:00]}  d3 {[%clk 0:02:58]} 4. Bxd3 {[%clk 0:03:00]}  Nc6 {[%clk 0:02:58]} 5. c4 {[%clk 0:03:00]}  g6 {[%clk 0:02:58]} 6. f4 {[%clk 0:03:00]}  Bg7 {[%clk 0:02:58]} 7. Nf3 {[%clk 0:03:01]}  d6 {[%clk 0:02:58]} 8. O-O {[%clk 0:03:01]}  Nf6 {[%clk 0:02:59]} 9. Nc3 {[%clk 0:03:01]}  O-O {[%clk 0:02:59]} 10. Qe2 {[%clk 0:03:02]}  Nd7 {[%clk 0:02:58]} 11. Be3 {[%clk 0:03:01]}  Nc5 {[%clk 0:02:58]} 12. Rfd1 {[%clk 0:02:59]}  Bg4 {[%clk 0:02:57]} 13. Bxc5 {[%clk 0:02:54]}  dxc5 {[%clk 0:02:56]} 14. Rac1 {[%clk 0:02:50]}  Nd4 {[%clk 0:02:56]} 15. Qf2 {[%clk 0:02:42]}  Nxf3+ {[%clk 0:02:55]} 16. gxf3 {[%clk 0:02:13]}  Bd4 {[%clk 0:02:53]} 17. fxg4 {[%clk 0:02:12]}  Bxf2+ {[%clk 0:02:45]} 18. Kxf2 {[%clk 0:02:13]}  Qd4+ {[%clk 0:02:45]} 19. Kg2 {[%clk 0:02:05]}  Rad8 {[%clk 0:02:45]} 20. Nd5 {[%clk 0:02:00]}  e6 {[%clk 0:02:40]} 21. Ne7+ {[%clk 0:01:53]}  Kh8 {[%clk 0:02:37]} 22. f5 {[%clk 0:01:50]}  Qxb2+ {[%clk 0:02:35]} 23. Rc2 {[%clk 0:01:49]}  Qf6 {[%clk 0:02:34]} 24. fxg6 {[%clk 0:01:28]}  fxg6 {[%clk 0:02:32]} 25. Nxg6+ {[%clk 0:01:23]}  hxg6 {[%clk 0:02:32]} 26. Rf1 {[%clk 0:01:19]}  Qg5 {[%clk 0:02:31]} 27. Rxf8+ {[%clk 0:01:15]}  Rxf8 {[%clk 0:02:32]} 28. Be2 {[%clk 0:01:02]}  Qe3 {[%clk 0:02:31]} 0-1


[Site "https://www.chess.com"]

[Event "Titled Tuesday Blitz June 13 Early 2023"]
[White "Nazari, Arad"]
[Black "Castillo Pena, Patricia Evarista"]
[WhiteFideId "12577324"]
[BlackFideId "6412106"]
[WhiteElo "2175"]
[BlackElo "1859"]
[Result "1-0"]
[Round "2"]
[TimeControl "180+2"]
[Date "2023.06.13"]
[WhiteClock "0:01:28"]
[BlackClock "0:00:04"]
[Board "108"]

1. e4 {[%clk 0:02:51]}  c5 {[%clk 0:02:59]} 2. Nf3 {[%clk 0:02:39]}  d6 {[%clk 0:02:58]} 3. Bb5+ {[%clk 0:02:39]}  Bd7 {[%clk 0:02:55]} 4. Bxd7+ {[%clk 0:02:39]}  Qxd7 {[%clk 0:02:54]} 5. O-O {[%clk 0:02:40]}  Nf6 {[%clk 0:02:54]} 6. Re1 {[%clk 0:02:40]}  Nc6 {[%clk 0:02:53]} 7. c3 {[%clk 0:02:40]}  e5 {[%clk 0:02:53]} 8. d4 {[%clk 0:02:40]}  cxd4 {[%clk 0:02:44]} 9. cxd4 {[%clk 0:02:41]}  Be7 {[%clk 0:02:37]} 10. Nc3 {[%clk 0:02:37]}  exd4 {[%clk 0:02:32]} 11. Nxd4 {[%clk 0:02:36]}  O-O {[%clk 0:02:29]} 12. Nf5 {[%clk 0:02:33]}  Rfe8 {[%clk 0:02:15]} 13. Bg5 {[%clk 0:02:17]}  Rad8 {[%clk 0:01:37]} 14. Qd3 {[%clk 0:01:52]}  Ne5 {[%clk 0:01:32]} 15. Qg3 {[%clk 0:01:51]}  Ng6 {[%clk 0:01:30]} 16. Rad1 {[%clk 0:01:49]}  Qc6 {[%clk 0:01:18]} 17. Nxe7+ {[%clk 0:01:42]}  Rxe7 {[%clk 0:01:12]} 18. Bxf6 {[%clk 0:01:36]}  gxf6 {[%clk 0:01:08]} 19. Nd5 {[%clk 0:01:36]}  Re6 {[%clk 0:01:02]} 20. f4 {[%clk 0:01:37]}  Kh8 {[%clk 0:00:40]} 21. f5 {[%clk 0:01:36]}  Ne5 {[%clk 0:00:23]} 22. fxe6 {[%clk 0:01:35]}  fxe6 {[%clk 0:00:23]} 23. Nxf6 {[%clk 0:01:32]}  Qb6+ {[%clk 0:00:17]} 24. Kh1 {[%clk 0:01:31]}  Qxb2 {[%clk 0:00:04]} 25. Qh4 {[%clk 0:01:28]} 1-0


[Site "https://www.chess.com"]

[Event "Titled Tuesday Blitz June 13 Early 2023"]
[White "Keymer, Vincent"]
[Black "Petukhov, Dmitry"]
[WhiteFideId "12940690"]
[BlackFideId "4142748"]
[WhiteElo "2669"]
[BlackElo "2311"]
[Result "1-0"]
[Round "2"]
[TimeControl "180+2"]
[Date "2023.06.13"]
[WhiteClock "0:00:20"]
[BlackClock "0:00:08"]
[Board "110"]

1. a3 {[%clk 0:02:57]}  a5 {[%clk 0:02:56]} 2. e4 {[%clk 0:02:54]}  e5 {[%clk 0:02:54]} 3. Nf3 {[%clk 0:02:52]}  Nc6 {[%clk 0:02:54]} 4. Bb5 {[%clk 0:02:52]}  d6 {[%clk 0:02:44]} 5. O-O {[%clk 0:02:47]}  Bd7 {[%clk 0:02:43]} 6. d4 {[%clk 0:02:39]}  Nf6 {[%clk 0:02:32]} 7. Nc3 {[%clk 0:02:36]}  Be7 {[%clk 0:02:23]} 8. d5 {[%clk 0:02:18]}  Nb8 {[%clk 0:02:18]} 9. Re1 {[%clk 0:02:05]}  Bxb5 {[%clk 0:02:09]} 10. Nxb5 {[%clk 0:02:06]}  O-O {[%clk 0:02:10]} 11. a4 {[%clk 0:01:57]}  Nbd7 {[%clk 0:02:04]} 12. b3 {[%clk 0:01:54]}  Nc5 {[%clk 0:02:00]} 13. Nc3 {[%clk 0:01:52]}  Nfd7 {[%clk 0:01:53]} 14. Nd2 {[%clk 0:01:48]}  f5 {[%clk 0:01:53]} 15. exf5 {[%clk 0:01:46]}  Rxf5 {[%clk 0:01:41]} 16. Nde4 {[%clk 0:01:46]}  Qe8 {[%clk 0:01:36]} 17. Nxc5 {[%clk 0:01:39]}  Nxc5 {[%clk 0:01:34]} 18. Be3 {[%clk 0:01:39]}  b6 {[%clk 0:01:25]} 19. Qg4 {[%clk 0:01:38]}  Qg6 {[%clk 0:01:23]} 20. h3 {[%clk 0:01:28]}  Bg5 {[%clk 0:01:15]} 21. Bxc5 {[%clk 0:01:05]}  bxc5 {[%clk 0:01:16]} 22. Ne4 {[%clk 0:01:06]}  h6 {[%clk 0:01:08]} 23. g3 {[%clk 0:00:55]}  Qf7 {[%clk 0:00:56]} 24. Rad1 {[%clk 0:00:52]}  Rf8 {[%clk 0:00:53]} 25. Qe2 {[%clk 0:00:44]}  Bd8 {[%clk 0:00:45]} 26. Rd3 {[%clk 0:00:43]}  h5 {[%clk 0:00:37]} 27. Kg2 {[%clk 0:00:31]}  h4 {[%clk 0:00:31]} 28. c4 {[%clk 0:00:26]}  hxg3 {[%clk 0:00:24]} 29. fxg3 {[%clk 0:00:26]}  Bg5 {[%clk 0:00:24]} 30. Rdd1 {[%clk 0:00:23]}  Rf3 {[%clk 0:00:18]} 31. Rf1 {[%clk 0:00:20]}  Rxf1 {[%clk 0:00:18]} 32. Rxf1 {[%clk 0:00:20]}  Qg6 {[%clk 0:00:17]} 33. Rxf8+ {[%clk 0:00:20]}  Kxf8 {[%clk 0:00:08]} 34. Qg4 {[%clk 0:00:20]} 1-0


[Site "https://www.chess.com"]

[Event "Titled Tuesday Blitz June 13 Early 2023"]
[White "Vignesh N R"]
[Black "Kuzmin, Roman"]
[WhiteFideId "25012215"]
[BlackFideId "44134932"]
[WhiteElo "2415"]
[BlackElo "2122"]
[Result "1-0"]
[Round "2"]
[TimeControl "180+2"]
[Date "2023.06.13"]
[WhiteClock "0:02:34"]
[BlackClock "0:01:33"]
[Board "111"]

1. d4 {[%clk 0:03:00]}  Nf6 {[%clk 0:02:59]} 2. c4 {[%clk 0:03:01]}  e6 {[%clk 0:02:58]} 3. Nf3 {[%clk 0:03:01]}  d5 {[%clk 0:02:58]} 4. Nc3 {[%clk 0:03:01]}  c6 {[%clk 0:02:58]} 5. e3 {[%clk 0:03:00]}  Nbd7 {[%clk 0:02:58]} 6. Qc2 {[%clk 0:03:00]}  Bd6 {[%clk 0:02:55]} 7. Be2 {[%clk 0:03:00]}  O-O {[%clk 0:02:51]} 8. O-O {[%clk 0:03:00]}  dxc4 {[%clk 0:02:51]} 9. Bxc4 {[%clk 0:02:59]}  e5 {[%clk 0:02:44]} 10. h3 {[%clk 0:02:57]}  exd4 {[%clk 0:02:42]} 11. exd4 {[%clk 0:02:56]}  h6 {[%clk 0:02:40]} 12. Re1 {[%clk 0:02:50]}  Rb8 {[%clk 0:02:11]} 13. a4 {[%clk 0:02:46]}  b6 {[%clk 0:02:08]} 14. Bxh6 {[%clk 0:02:38]}  gxh6 {[%clk 0:01:47]} 15. Qg6+ {[%clk 0:02:38]}  Kh8 {[%clk 0:01:48]} 16. Qxh6+ {[%clk 0:02:37]}  Kg8 {[%clk 0:01:33]} 17. Ng5 {[%clk 0:02:34]} 1-0


[Site "https://www.chess.com"]

[Event "Titled Tuesday Blitz June 13 Early 2023"]
[White "Molina, Roberto Junio Brito"]
[Black "krucki03"]
[WhiteFideId "2109450"]
[WhiteElo "2376"]
[BlackElo "2453"]
[Result "1-0"]
[Round "2"]
[TimeControl "180+2"]
[Date "2023.06.13"]
[WhiteClock "0:00:48"]
[BlackClock "0:00:02"]
[Board "112"]

1. d4 {[%clk 0:03:00]}  Nf6 {[%clk 0:02:59]} 2. Nf3 {[%clk 0:03:00]}  e6 {[%clk 0:02:58]} 3. e3 {[%clk 0:03:00]}  c5 {[%clk 0:02:57]} 4. Bd3 {[%clk 0:03:00]}  b6 {[%clk 0:02:57]} 5. O-O {[%clk 0:02:59]}  Bb7 {[%clk 0:02:58]} 6. Qe2 {[%clk 0:02:59]}  cxd4 {[%clk 0:02:50]} 7. exd4 {[%clk 0:02:59]}  Be7 {[%clk 0:02:50]} 8. Re1 {[%clk 0:02:57]}  O-O {[%clk 0:02:50]} 9. Bg5 {[%clk 0:02:55]}  h6 {[%clk 0:02:44]} 10. Bh4 {[%clk 0:02:55]}  d6 {[%clk 0:02:41]} 11. c3 {[%clk 0:02:52]}  Nbd7 {[%clk 0:02:41]} 12. Nbd2 {[%clk 0:02:52]}  a6 {[%clk 0:02:41]} 13. a4 {[%clk 0:02:51]}  Re8 {[%clk 0:02:39]} 14. h3 {[%clk 0:02:48]}  Ra7 {[%clk 0:02:15]} 15. Bg3 {[%clk 0:02:47]}  Nd5 {[%clk 0:02:03]} 16. Nc4 {[%clk 0:02:44]}  N7f6 {[%clk 0:02:02]} 17. Ne3 {[%clk 0:02:42]}  Nxe3 {[%clk 0:02:00]} 18. fxe3 {[%clk 0:02:42]}  Be4 {[%clk 0:01:57]} 19. Bxa6 {[%clk 0:02:38]}  Qa8 {[%clk 0:01:51]} 20. Bb5 {[%clk 0:02:35]}  Rc8 {[%clk 0:01:50]} 21. Rac1 {[%clk 0:02:17]}  Bc6 {[%clk 0:01:28]} 22. Bxc6 {[%clk 0:02:16]}  Qxc6 {[%clk 0:01:28]} 23. b3 {[%clk 0:02:16]}  Ne4 {[%clk 0:01:28]} 24. Bf2 {[%clk 0:02:08]}  Nxc3 {[%clk 0:01:25]} 25. Qd3 {[%clk 0:02:06]}  Rac7 {[%clk 0:01:21]} 26. e4 {[%clk 0:02:00]}  Qd7 {[%clk 0:01:12]} 27. Rc2 {[%clk 0:01:57]}  Nd5 {[%clk 0:01:05]} 28. Rxc7 {[%clk 0:01:54]}  Nxc7 {[%clk 0:01:06]} 29. d5 {[%clk 0:01:51]}  Rb8 {[%clk 0:00:52]} 30. Nd4 {[%clk 0:01:41]}  exd5 {[%clk 0:00:32]} 31. exd5 {[%clk 0:01:40]}  Bf6 {[%clk 0:00:30]} 32. Nc6 {[%clk 0:01:36]}  Re8 {[%clk 0:00:30]} 33. Rxe8+ {[%clk 0:01:28]}  Qxe8 {[%clk 0:00:31]} 34. Bxb6 {[%clk 0:01:27]}  Qe1+ {[%clk 0:00:31]} 35. Qf1 {[%clk 0:01:13]}  Qd2 {[%clk 0:00:17]} 36. Bxc7 {[%clk 0:01:07]}  Qxd5 {[%clk 0:00:17]} 37. Qxf6 {[%clk 0:00:52]}  Qc5+ {[%clk 0:00:06]} 38. Qd4 {[%clk 0:00:52]}  Qxc6 {[%clk 0:00:02]} 39. Bxd6 {[%clk 0:00:48]}  Qc1+ {[%clk 0:00:02]} 1-0


[Site "https://www.chess.com"]

[Event "Titled Tuesday Blitz June 13 Early 2023"]
[White "Hayrapetyan, Hovik"]
[Black "gueraumasague"]
[WhiteFideId "13302639"]
[WhiteElo "2348"]
[BlackElo "2488"]
[Result "1/2-1/2"]
[Round "2"]
[TimeControl "180+2"]
[Date "2023.06.13"]
[WhiteClock "0:00:03"]
[BlackClock "0:00:07"]
[Board "113"]

1. d4 {[%clk 0:02:57]}  Nf6 {[%clk 0:02:56]} 2. c4 {[%clk 0:02:56]}  g6 {[%clk 0:02:57]} 3. Nc3 {[%clk 0:02:54]}  Bg7 {[%clk 0:02:57]} 4. Nf3 {[%clk 0:02:53]}  O-O {[%clk 0:02:58]} 5. g3 {[%clk 0:02:53]}  d6 {[%clk 0:02:57]} 6. Bg2 {[%clk 0:02:53]}  Bf5 {[%clk 0:02:57]} 7. Nh4 {[%clk 0:02:50]}  Bc8 {[%clk 0:02:56]} 8. O-O {[%clk 0:02:51]}  c6 {[%clk 0:02:55]} 9. Nf3 {[%clk 0:02:50]}  Nbd7 {[%clk 0:02:54]} 10. e4 {[%clk 0:02:49]}  e5 {[%clk 0:02:54]} 11. h3 {[%clk 0:02:45]}  Re8 {[%clk 0:02:54]} 12. Re1 {[%clk 0:02:43]}  exd4 {[%clk 0:02:53]} 13. Nxd4 {[%clk 0:02:22]}  Qb6 {[%clk 0:02:52]} 14. Nc2 {[%clk 0:01:55]}  Nc5 {[%clk 0:02:47]} 15. Rb1 {[%clk 0:01:23]}  a5 {[%clk 0:02:43]} 16. Be3 {[%clk 0:01:19]}  Be6 {[%clk 0:02:20]} 17. Na4 {[%clk 0:00:55]}  Qc7 {[%clk 0:02:20]} 18. Nxc5 {[%clk 0:00:50]}  dxc5 {[%clk 0:02:20]} 19. Qe2 {[%clk 0:00:46]}  Nd7 {[%clk 0:01:57]} 20. f4 {[%clk 0:00:45]}  Nb6 {[%clk 0:01:57]} 21. b3 {[%clk 0:00:43]}  a4 {[%clk 0:01:57]} 22. Bxc5 {[%clk 0:00:37]}  axb3 {[%clk 0:01:54]} 23. axb3 {[%clk 0:00:38]}  Ra2 {[%clk 0:01:48]} 24. Qf2 {[%clk 0:00:30]}  Nd7 {[%clk 0:01:43]} 25. Be3 {[%clk 0:00:30]}  h5 {[%clk 0:01:21]} 26. f5 {[%clk 0:00:25]}  Ne5 {[%clk 0:00:48]} 27. fxe6 {[%clk 0:00:24]}  Rxe6 {[%clk 0:00:49]} 28. Re2 {[%clk 0:00:21]}  Qa5 {[%clk 0:00:46]} 29. Nd4 {[%clk 0:00:19]}  Ra1 {[%clk 0:00:39]} 30. Rxa1 {[%clk 0:00:18]}  Qxa1+ {[%clk 0:00:40]} 31. Re1 {[%clk 0:00:18]}  Qc3 {[%clk 0:00:31]} 32. Nxe6 {[%clk 0:00:18]}  fxe6 {[%clk 0:00:32]} 33. Qd2 {[%clk 0:00:16]}  Qxb3 {[%clk 0:00:30]} 34. Rf1 {[%clk 0:00:14]}  Qxc4 {[%clk 0:00:22]} 35. Qd8+ {[%clk 0:00:13]}  Kh7 {[%clk 0:00:23]} 36. Bf2 {[%clk 0:00:10]}  b5 {[%clk 0:00:22]} 37. Qb8 {[%clk 0:00:06]}  b4 {[%clk 0:00:22]} 38. Rb1 {[%clk 0:00:05]}  c5 {[%clk 0:00:20]} 39. Kh2 {[%clk 0:00:05]}  Nd3 {[%clk 0:00:20]} 40. Be3 {[%clk 0:00:03]}  Qc2 {[%clk 0:00:21]} 41. Rg1 {[%clk 0:00:02]}  b3 {[%clk 0:00:20]} 42. Bf4 {[%clk 0:00:01]}  b2 {[%clk 0:00:18]} 43. Bg5 {[%clk 0:00:02]}  Qc3 {[%clk 0:00:10]} 44. Qc7 {[%clk 0:00:02]}  c4 {[%clk 0:00:09]} 45. Be7 {[%clk 0:00:03]}  Qe5 {[%clk 0:00:08]} 46. Qxe5 {[%clk 0:00:02]}  Bxe5 {[%clk 0:00:09]} 47. Ba3 {[%clk 0:00:03]}  c3 {[%clk 0:00:09]} 48. Bxb2 {[%clk 0:00:03]}  cxb2 {[%clk 0:00:09]} 49. Rb1 {[%clk 0:00:04]}  Nb4 {[%clk 0:00:08]} 50. Bf1 {[%clk 0:00:04]}  Na2 {[%clk 0:00:09]} 51. Bd3 {[%clk 0:00:03]}  Nc3 {[%clk 0:00:09]} 52. Rf1 {[%clk 0:00:04]}  Kg7 {[%clk 0:00:09]} 53. Kg2 {[%clk 0:00:05]}  Bd4 {[%clk 0:00:09]} 54. Bc2 {[%clk 0:00:05]}  Ne2 {[%clk 0:00:09]} 55. Rf3 {[%clk 0:00:04]}  Nc3 {[%clk 0:00:08]} 56. Rf1 {[%clk 0:00:04]}  e5 {[%clk 0:00:08]} 57. h4 {[%clk 0:00:04]}  Nb5 {[%clk 0:00:08]} 58. Kh3 {[%clk 0:00:04]}  Na3 {[%clk 0:00:08]} 59. Bd3 {[%clk 0:00:04]}  Be3 {[%clk 0:00:08]} 60. g4 {[%clk 0:00:04]}  Bc1 {[%clk 0:00:08]} 61. gxh5 {[%clk 0:00:04]}  gxh5 {[%clk 0:00:09]} 62. Rg1+ {[%clk 0:00:05]}  Kf6 {[%clk 0:00:09]} 63. Rf1+ {[%clk 0:00:05]}  Kg7 {[%clk 0:00:09]} 64. Kg2 {[%clk 0:00:06]}  Be3 {[%clk 0:00:06]} 65. Kf3 {[%clk 0:00:06]}  Bd4 {[%clk 0:00:07]} 66. Ke2 {[%clk 0:00:05]}  Kg6 {[%clk 0:00:05]} 67. Kd2 {[%clk 0:00:06]}  Kg7 {[%clk 0:00:04]} 68. Rf5 {[%clk 0:00:06]}  Kg6 {[%clk 0:00:04]} 69. Rf8 {[%clk 0:00:06]}  Kg7 {[%clk 0:00:04]} 70. Ra8 {[%clk 0:00:07]}  b1=Q {[%clk 0:00:04]} 71. Bxb1 {[%clk 0:00:06]}  Nxb1+ {[%clk 0:00:05]} 72. Kd3 {[%clk 0:00:07]}  Nc3 {[%clk 0:00:06]} 73. Rc8 {[%clk 0:00:07]}  Nd1 {[%clk 0:00:05]} 74. Rc7+ {[%clk 0:00:06]}  Kg6 {[%clk 0:00:05]} 75. Rc6+ {[%clk 0:00:07]}  Kg7 {[%clk 0:00:06]} 76. Rc7+ {[%clk 0:00:06]}  Kg6 {[%clk 0:00:06]} 77. Rc6+ {[%clk 0:00:06]}  Kg7 {[%clk 0:00:07]} 78. Rc7+ {[%clk 0:00:03]} 1/2-1/2


[Site "https://www.chess.com"]